bitfinex-derivatives/quotes_ETHF0:USTF0_20250116
["timestamp","ask_amount","ask_price","bid_price","bid_amount"]
[1737049467924,0.59685,3351.4,3351.3,5.22851207]
[1737049468427,1.1869,3351.8,3351.3,4.63165207]
[1737049468624,0.59681,3351.7,3351.6,0.5968]
[1737049468833,0.59683,3351.6,3351.5,0.59681]
[1737049469729,5.22750284,3352.1,3351.2,3.2078]
[1737049469932,0.59679,3351.8,3351.7,0.59677]
[1737049471736,0.59677,3351.9,3351.8,0.59675]
[1737049472626,0.59682,3351.7,3351.6,0.5968]
[1737049475330,0.59686,3351.5,3351.4,0.59683]
[1737049477527,2.25825554,3351.8,3351.2,3.2078]
[1737049477727,0.59683,3351.6,3351.5,0.59681]
[1737049478228,2.32215286,3352.0,3351.9,0.59676]
[1737049478430,2.32215286,3352.0,3351.9,5.05456]
[1737049478831,2.32215286,3352.0,3351.9,45.85456]
[1737049479028,2.32215286,3352.0,3351.9,48.84474412]
[1737049479232,1.65065604,3352.0,3351.9,46.58648858]
[1737049479434,0.59666,3352.5,3352.4,0.59665]
[1737049479635,0.59666,3352.5,3352.4,1.32864052]
[1737049480236,1.65065604,3352.9,3352.4,0.28152684]
[1737049480534,2.24723604,3352.9,3352.8,0.5966]
[1737049480732,0.59658,3352.9,3352.8,0.87812684]
[1737049481128,0.59658,3352.9,3352.8,0.28152684]
[1737049481432,0.59658,3352.9,3352.8,0.5966]
[1737049481738,0.59658,3352.9,3352.8,0.87491509]
[1737049482236,3.10178,3353.0,3352.9,0.59658]
[1737049482435,3.10178,3353.0,3352.9,0.27831509]
[1737049483130,0.59663,3352.7,3352.6,0.59663]
[1737049483330,0.59659,3352.9,3352.8,0.59659]
[1737049483527,3.10177,3353.0,3352.9,0.59658]
[1737049484834,0.59659,3352.9,3352.8,0.59659]
[1737049485429,0.59664,3352.6,3352.5,0.59665]
[1737049485632,0.59663,3352.7,3352.6,0.59662]
[1737049486039,0.59661,3352.8,3352.7,0.59661]
[1737049486244,0.59662,3352.7,3352.6,0.59663]
[1737049486538,0.59665,3352.6,3352.5,0.59664]
[1737049487137,0.59668,3352.4,3352.3,0.59668]
[1737049487338,2.90595292,3352.9,3352.0,3.2078]
[1737049487548,2.90595292,3352.5,3352.0,3.2078]
[1737049487838,0.59674,3352.0,3351.9,4.63165207]
[1737049488229,0.59674,3352.0,3351.9,1.27125207]
[1737049488230,2.80374,3352.0,3351.9,1.27125207]
[1737049489141,1.49191,3351.9,3351.1,4.2989]
[1737049489338,3.2078,3351.9,3351.1,4.2989]
[1737049489540,0.59686,3351.4,3351.3,0.59685]
[1737049489932,3.2078,3351.9,3351.1,4.2989]
[1737049490239,0.59686,3351.4,3351.3,0.59686]
[1737049491244,0.59688,3351.3,3351.2,0.59687]
[1737049493134,0.59694,3350.9,3350.8,1.64775]
[1737049493336,0.59694,3351.0,3350.9,0.59692]
[1737049494344,0.59691,3351.2,3351.1,0.59689]
[1737049494540,0.59692,3351.1,3351.0,0.59691]
[1737049494939,0.59692,3351.1,3351.0,0.86954511]
[1737049496846,0.5969,3351.1,3351.0,0.2722097]
[1737049497450,0.59696,3350.8,3350.7,3.2078]
[1737049497641,0.59696,3350.8,3350.7,3.47994193]
[1737049499353,0.59696,3350.8,3350.7,0.27214193]
[1737049499743,0.59696,3350.8,3350.7,0.86911193]
[1737049499943,0.59696,3350.8,3350.7,0.27214193]
[1737049501351,0.59703,3350.5,3350.4,0.59702]
[1737049501546,2.25932892,3350.9,3350.4,0.27165529]
[1737049501752,0.59691,3351.1,3351.0,0.59691]
[1737049501961,0.5969,3351.2,3351.1,0.59689]
[1737049502148,0.5969,3351.2,3351.1,0.86837177]
[1737049502352,0.5969,3351.2,3351.1,0.27148177]
[1737049502856,6.90363465,3351.3,3350.7,3.2078]
[1737049503155,0.59694,3350.9,3350.8,0.27133664]
[1737049503358,0.59705,3350.3,3350.2,4.2531]
[1737049503548,0.59705,3350.3,3350.2,3.94570632]
[1737049503549,2.85637892,3350.3,3350.2,3.94570632]
[1737049504053,2.85637892,3350.3,3350.2,3.49160207]
[1737049504253,6.06417892,3350.3,3350.2,0.28380207]
[1737049504556,6.06417892,3350.3,3349.9,6.94747811]
[1737049504557,0.5971,3350.0,3349.9,6.94747811]
[1737049504852,2.85642892,3350.0,3349.9,7.23130903]
[1737049505062,2.85642892,3350.0,3349.9,0.28383092]
[1737049505251,0.59717,3349.6,3349.5,3.2078]
[1737049505451,0.59717,3349.6,3349.5,3.9455168]
[1737049505852,0.59717,3349.6,3349.5,0.7377168]
[1737049506154,0.59717,3349.6,3349.5,0.28372918]
[1737049507049,0.59717,3349.6,3349.5,0.73754759]
[1737049507360,2.25932892,3349.7,3349.5,0.28372918]
[1737049507556,5.46712892,3350.3,3349.6,0.28372918]
[1737049507756,2.1371,3350.5,3349.7,0.28372918]
[1737049508059,2.1371,3350.5,3349.6,2.25932892]
[1737049508060,0.59705,3350.3,3350.2,0.59705]
[1737049508453,0.59705,3350.3,3349.9,1.1229]
[1737049508454,0.59706,3350.2,3350.1,0.59707]
[1737049508649,4.61068838,3350.5,3350.1,0.28338646]
[1737049508954,3.50858838,3350.5,3350.4,0.59703]
[1737049509158,3.50858838,3350.5,3350.4,0.88040024]
[1737049509358,7.85210573,3350.7,3350.4,0.28337024]
[1737049509359,3.2078,3350.7,3350.4,0.28337024]
[1737049509555,3.50858838,3351.0,3350.9,0.59694]
[1737049509862,3.50858838,3351.0,3350.9,0.8802013]
[1737049510458,5.24120573,3351.2,3350.9,0.2832613]
[1737049510761,0.5969,3351.1,3351.0,0.8801813]
[1737049510964,1.1021,3351.3,3350.8,3.2078]
[1737049511258,1.1021,3351.3,3350.9,0.28324656]
[1737049511450,0.59691,3351.1,3351.0,0.88015656]
[1737049512162,0.59691,3351.1,3351.0,0.28324656]
[1737049513555,0.59691,3351.1,3350.7,2.1694]
[1737049513556,0.59696,3350.8,3350.7,2.76637]
[1737049513757,0.59696,3350.8,3350.7,3.04988165]
[1737049514064,0.59696,3350.8,3350.7,0.28351165]
[1737049514562,0.59696,3350.8,3350.7,0.88048165]
[1737049514767,0.59696,3350.8,3350.7,0.73713142]
[1737049515066,1.49227,3351.1,3350.7,0.73725734]
[1737049515264,0.59696,3350.8,3350.7,0.59697]
[1737049515462,0.59696,3350.8,3350.7,0.73777989]
[1737049516060,0.59696,3350.8,3350.7,1.33474989]
[1737049516761,3.2078,3351.2,3350.7,0.73777989]
[1737049517060,0.5969,3351.1,3351.0,0.59691]
[1737049517257,0.5969,3351.1,3351.0,1.33468989]
[1737049517857,3.2078,3351.2,3351.0,0.73777989]
[1737049518163,3.50858838,3351.8,3351.7,0.5968]
[1737049518361,4.10536838,3351.8,3351.7,1.33457989]
[1737049518557,3.50858838,3351.8,3351.7,1.33457989]
[1737049519064,3.2078,3352.0,3351.9,0.59676]
[1737049519270,3.2078,3352.0,3351.9,1.33453989]
[1737049520559,3.2078,3352.0,3351.9,1.33398186]
[1737049520765,4.2972,3352.6,3351.9,3.94502186]
[1737049521065,0.5967,3352.3,3352.2,0.5967]
[1737049521260,0.5967,3352.3,3352.2,1.33392186]
[1737049521564,3.2078,3352.6,3352.2,0.73722186]
[1737049521863,0.59667,3352.4,3352.3,0.28353882]
[1737049522266,3.2078,3352.6,3351.9,4.2329]
[1737049522458,0.59672,3352.2,3352.1,0.59672]
[1737049522658,0.59672,3352.2,3352.1,0.87994901]
[1737049523765,2.90915628,3352.5,3352.1,0.28322901]
[1737049523965,0.5967,3352.3,3352.2,0.59669]
[1737049524558,0.59674,3352.1,3352.0,0.59673]
[1737049524853,2.90915628,3352.5,3352.0,0.28300402]
[1737049525059,0.59671,3352.3,3352.2,0.59669]
[1737049525363,0.59671,3352.3,3351.9,4.2329]
[1737049525364,3.80444,3352.6,3352.5,0.59665]
[1737049525664,0.59672,3352.2,3352.1,0.59671]
[1737049525865,0.59672,3352.2,3352.1,0.87957268]
[1737049526066,0.5967,3352.3,3352.2,0.59668]
[1737049526366,0.5967,3352.3,3351.9,4.2329]
[1737049526367,3.2078,3352.6,3351.9,4.2329]
[1737049526560,0.59667,3352.5,3352.4,0.59665]
[1737049526865,0.59673,3352.2,3352.1,0.59671]
[1737049527059,0.59673,3352.2,3352.1,0.87947665]
[1737049527261,0.59673,3352.2,3352.1,0.59671]
[1737049528561,0.59669,3352.4,3352.3,0.59668]
[1737049528963,0.59667,3352.5,3352.4,0.59665]
[1737049529270,3.2078,3352.6,3351.9,4.2329]
[1737049529461,0.59672,3352.3,3352.2,0.59669]
[1737049530666,0.59672,3352.3,3352.2,0.87915613]
[1737049532069,0.59672,3352.3,3352.2,0.87910983]
[1737049532558,3.50858838,3353.0,3352.3,1.49173]
[1737049532761,3.50858838,3353.0,3352.9,6.06193617]
[1737049532963,3.50858838,3353.0,3352.9,6.79604679]
[1737049533174,0.47658838,3353.0,3352.9,47.59604679]
[1737049533870,0.59657,3353.0,3352.9,3.94191062]
[1737049534164,3.2078,3353.5,3352.9,0.28234223]
[1737049534361,6.9018619,3353.9,3353.2,3.2078]
[1737049534577,0.59651,3353.4,3353.3,0.87865697]
[1737049534760,0.59651,3353.4,3353.3,0.87865746]
[1737049535269,0.59649,3353.5,3353.4,0.59647]
[1737049535469,0.59646,3353.7,3353.6,0.59645]
[1737049535667,0.59641,3353.9,3353.8,0.59641]
[1737049535861,3.80419,3354.0,3353.9,0.59641]
[1737049536062,3.2078,3354.0,3353.9,0.59641]
[1737049536260,5.24067573,3354.1,3354.0,0.59639]
[1737049536261,4.64430573,3354.1,3354.0,0.59639]
[1737049536661,4.64430573,3354.1,3353.8,3.2078]
[1737049536662,0.59637,3354.1,3353.8,3.2078]
[1737049536863,0.59636,3354.2,3354.1,0.59636]
[1737049537267,0.59636,3354.2,3354.1,0.59637]
[1737049537466,4.64430573,3354.4,3353.8,3.2078]
[1737049537668,4.64430573,3354.4,3353.9,4.79214024]
[1737049537858,4.64430573,3355.0,3354.2,5.46535617]
[1737049538063,4.64430573,3355.0,3354.6,3.2078]
[1737049538366,4.64430573,3355.0,3354.9,0.59623]
[1737049538566,4.64430573,3355.0,3354.6,3.2078]
[1737049538872,0.59626,3354.7,3354.6,3.2078]
[1737049539765,0.59626,3354.7,3354.6,3.80408]
[1737049539965,0.59626,3354.7,3354.6,3.2078]
[1737049540272,2.53579,3355.2,3354.6,3.2078]
[1737049540273,1.64149,3355.2,3355.0,0.59619]
[1737049540569,4.89707,3355.3,3355.2,0.59617]
[1737049540769,3.2078,3355.3,3355.2,0.59617]
[1737049541565,0.59613,3355.5,3355.4,0.59614]
[1737049541761,0.59615,3355.4,3355.0,3.2078]
[1737049541973,0.59617,3355.3,3355.1,0.59618]
[1737049542671,2.25755617,3355.5,3355.1,0.59618]
[1737049542863,2.25755617,3355.5,3354.7,3.3225]
[1737049543270,0.59618,3355.2,3354.7,3.3225]
[1737049543472,0.59618,3355.2,3355.1,0.59619]
[1737049543665,2.90151163,3355.6,3354.7,2.3114]
[1737049543874,2.0507,3355.8,3354.7,2.3114]
[1737049543875,3.2078,3355.1,3354.7,2.3114]
[1737049544167,0.59625,3354.8,3354.7,2.3114]
[1737049544362,3.2078,3355.5,3354.7,1.241]
[1737049544760,0.59614,3355.4,3355.2,0.59616]
[1737049544967,0.59614,3355.4,3355.3,0.59616]
[1737049545161,3.2078,3355.5,3354.8,1.0954]
[1737049545364,0.59617,3355.3,3355.1,0.59618]
[1737049545566,3.2078,3355.5,3355.4,0.59614]
[1737049547376,3.2078,3355.5,3355.1,1.0684]
[1737049547569,3.2078,3355.5,3354.8,1.0954]
[1737049547771,0.59621,3355.0,3354.9,0.2805128]
[1737049547977,0.59621,3355.0,3354.8,0.59623]
[1737049548173,2.90151163,3355.2,3354.9,0.28058825]
[1737049548472,2.90151163,3355.2,3354.4,1.0272]
[1737049548776,0.59628,3354.6,3354.5,0.87687814]
[1737049549070,0.59628,3354.6,3354.5,0.28061093]
[1737049550073,0.59635,3354.3,3354.2,0.59635]
[1737049550273,0.59635,3354.3,3354.2,0.87697899]
[1737049550672,0.59635,3354.3,3354.2,0.28062899]
[1737049550869,1.49089,3354.2,3353.5,1.241]
[1737049551075,0.59645,3353.7,3353.6,0.73006609]
[1737049551376,0.59645,3353.7,3353.6,0.28078668]
[1737049551575,0.59653,3353.2,3353.1,3.2078]
[1737049551779,0.59653,3353.2,3353.1,3.48883427]
[1737049552580,1.49113,3353.7,3353.1,0.27992661]
[1737049552776,0.59657,3353.0,3352.9,1.241]
[1737049552977,0.59657,3353.0,3352.9,1.5209635]
[1737049553285,0.59657,3353.0,3352.9,2.1175435]
[1737049553481,0.59657,3353.0,3352.9,1.5209635]
[1737049553884,0.59657,3353.0,3352.9,2.1175435]
[1737049554185,0.59657,3353.0,3352.9,1.5209635]
[1737049555276,0.59657,3353.0,3352.9,1.96938407]
[1737049555679,0.59657,3353.0,3352.9,1.5209635]
[1737049556269,0.59657,3353.0,3352.9,0.2799635]
[1737049557486,0.59657,3353.0,3352.9,0.72861241]
[1737049557691,0.59657,3353.0,3352.9,0.2799635]
[1737049557880,0.59657,3353.0,3352.9,0.72861796]
[1737049558178,0.59657,3353.0,3352.9,0.2799635]
[1737049558384,0.59657,3353.0,3352.9,0.72878385]
[1737049558583,0.59657,3353.0,3352.9,0.2799635]
[1737049558787,2.90151163,3353.0,3351.2,0.84196187]
[1737049558983,2.90151163,3352.2,3351.6,1.0234]
[1737049559183,3.2078,3352.0,3351.0,3.2078]
[1737049559384,0.59683,3351.5,3351.1,0.44709137]
[1737049559590,0.59687,3351.3,3351.2,0.44709137]
[1737049560089,0.59687,3351.3,3351.2,0.44712041]
[1737049560292,0.59687,3351.3,3350.9,7.54440811]
[1737049560590,3.2078,3351.6,3351.0,0.44722857]
[1737049560591,0.5969,3351.1,3351.0,0.44722857]
[1737049561183,0.5969,3351.1,3351.0,0.44742639]
[1737049561390,3.2078,3351.2,3350.5,0.597]
[1737049561592,0.59698,3350.7,3350.6,0.44740735]
[1737049561984,0.59693,3351.0,3350.7,0.59696]
[1737049562184,0.59686,3351.4,3350.9,0.59694]
[1737049562384,0.59686,3351.4,3350.6,3.2078]
[1737049562385,0.5969,3351.1,3351.0,0.44740735]
[1737049562591,0.59696,3350.8,3350.6,3.80478]
[1737049562792,0.59696,3350.8,3350.7,41.24680993]
[1737049562993,2.90151163,3351.0,3350.7,0.44680993]
[1737049563289,0.59695,3350.9,3350.8,0.44680993]
[1737049563489,2.90151163,3351.0,3350.6,44.0078]
[1737049563683,0.59697,3350.8,3350.7,0.44636284]
[1737049563883,3.2078,3351.6,3350.7,0.44636284]
[1737049564184,0.59686,3351.4,3350.8,0.44636284]
[1737049564385,3.2078,3352.0,3350.9,0.44636284]
[1737049564591,0.59673,3352.1,3351.9,0.59675]
[1737049564782,3.2078,3352.5,3351.7,0.5968]
[1737049564783,0.59676,3352.0,3351.7,0.5968]
[1737049564983,3.2078,3352.5,3351.6,3.2078]
[1737049565186,2.90151163,3352.2,3351.6,3.2078]
[1737049565382,0.59674,3352.1,3351.6,3.2078]
[1737049565585,3.2078,3352.5,3351.8,1.49195]
[1737049565781,3.80446,3352.5,3352.3,0.59667]
[1737049565985,3.80446,3352.5,3352.4,0.59667]
[1737049566195,0.59666,3352.5,3352.3,0.59668]
[1737049566396,2.90151163,3352.6,3352.2,1.241]
[1737049566795,0.59669,3352.4,3352.2,1.8377]
[1737049567492,2.90151163,3352.6,3352.2,1.8377]
[1737049567796,2.90151163,3352.6,3352.2,1.241]
[1737049567995,0.59669,3352.4,3352.2,1.241]
[1737049568384,0.59669,3352.4,3352.2,1.8377]
[1737049568694,0.59669,3352.3,3352.2,1.241]
[1737049568896,0.59669,3352.3,3352.2,1.83771]
[1737049569196,2.90151163,3352.6,3352.2,1.241]
[1737049569395,0.59668,3352.4,3352.3,0.59668]
[1737049569585,0.59669,3352.3,3352.2,1.8377]
[1737049569793,0.59669,3352.3,3352.2,1.241]
[1737049570097,0.59673,3352.1,3352.0,0.59673]
[1737049570291,0.59673,3352.1,3351.5,3.2078]
[1737049570488,0.59681,3351.6,3351.5,3.2078]
[1737049570689,0.5968,3351.7,3351.6,0.59681]
[1737049570991,0.5968,3351.7,3351.6,0.87553096]
[1737049571187,0.5968,3351.7,3351.6,0.27872096]
[1737049571392,0.59679,3351.8,3351.7,0.59679]
[1737049571594,0.59679,3351.8,3351.7,0.27872096]
[1737049572191,3.49830163,3351.8,3351.7,0.27872096]
[1737049572398,0.59681,3351.6,3351.5,3.2078]
[1737049572695,2.90151163,3351.8,3351.0,3.2078]
[1737049572900,2.90151163,3351.4,3351.1,0.27890745]
[1737049573202,0.5969,3351.1,3351.0,3.2078]
[1737049573398,2.90151163,3351.4,3350.5,3.2078]
[1737049573608,0.59697,3350.7,3350.6,0.2790014]
[1737049574605,0.59697,3350.7,3350.6,0.27899396]
[1737049577400,6.70628163,3350.7,3350.6,0.27899396]
[1737049577602,0.59706,3350.2,3350.1,4.2689]
[1737049577801,0.59706,3350.2,3350.1,4.99573921]
[1737049578002,0.59706,3350.2,3350.1,5.59281921]
[1737049578204,0.59706,3350.2,3350.1,4.53171921]
[1737049578611,0.597,3350.6,3350.5,0.597]
[1737049578906,0.597,3350.6,3350.5,0.87654561]
[1737049579307,0.597,3350.6,3350.5,0.72766659]
[1737049579503,0.59699,3350.6,3350.5,1.32465659]
[1737049579811,2.90151163,3351.3,3350.6,0.59699]
[1737049580003,2.90151163,3351.3,3350.8,0.597]
[1737049580204,2.90151163,3351.3,3350.7,0.72811856]
[1737049580205,2.90151163,3351.0,3350.9,0.72844975]
[1737049580404,2.90151163,3351.0,3350.9,0.28003765]
[1737049580405,3.49849163,3351.0,3350.9,0.28003765]
[1737049580703,0.59708,3350.5,3350.3,0.5971]
[1737049581006,0.59708,3350.5,3350.4,0.72896876]
[1737049581208,0.59708,3350.5,3350.4,0.72948183]
[1737049582015,0.59708,3350.5,3350.4,0.28036464]
[1737049582207,0.59708,3350.5,3350.4,0.72935608]
[1737049583812,0.59707,3350.5,3350.4,0.72964611]
[1737049584113,3.2078,3350.6,3349.6,1.0937]
[1737049584322,0.59719,3349.8,3349.7,0.72988243]
[1737049585820,1.0797,3350.4,3349.7,3.93808423]
[1737049586120,0.59708,3350.5,3350.4,0.59708]
[1737049586414,0.59708,3350.5,3350.4,0.73028423]
[1737049586614,0.59708,3350.5,3350.4,0.28087058]
[1737049586817,1.68148,3350.5,3350.4,0.28087058]
[1737049587516,0.59708,3350.5,3350.4,0.73053311]
[1737049587719,0.59701,3350.5,3350.4,0.73062126]
[1737049588510,3.2078,3350.6,3350.4,0.73062126]
[1737049588717,0.597,3350.6,3350.5,1.32763126]
[1737049589017,0.597,3350.6,3350.5,0.73062126]
[1737049589409,3.8048,3350.6,3350.5,0.73062126]
[1737049589612,0.59711,3350.0,3349.9,0.5971]
[1737049589815,3.2078,3350.6,3349.9,0.72294542]
[1737049590008,3.2078,3350.6,3350.0,0.72294542]
[1737049590211,0.59707,3350.2,3350.1,1.32001542]
[1737049590413,0.59707,3350.2,3350.1,0.72294542]
[1737049590811,3.49858163,3350.2,3350.1,0.72294542]
[1737049591110,6.70638163,3350.2,3350.1,0.72294542]
[1737049591317,6.70638163,3350.2,3350.1,0.27804804]
[1737049591815,0.59721,3349.4,3349.3,1.0778]
[1737049592015,0.59721,3349.4,3349.3,1.8004753]
[1737049593520,3.80501,3349.4,3349.3,0.7226753]
[1737049593815,6.70652163,3349.4,3349.3,0.7226753]
[1737049594023,6.70652163,3349.4,3349.3,0.27794415]
[1737049594825,0.59733,3348.7,3348.6,1.0125]
[1737049595124,0.59733,3348.7,3348.6,1.28899429]
[1737049595318,0.59733,3348.7,3348.6,0.27647895]
[1737049597211,0.59733,3348.7,3348.6,0.27649834]
[1737049597814,5.59733,3348.7,3348.6,0.27649834]
[1737049598217,0.59751,3347.7,3347.6,2.1208]
[1737049598417,3.49902163,3347.7,3347.6,0.27647251]
[1737049599022,3.80528,3347.9,3347.8,0.59749]
[1737049599222,0.59747,3347.9,3347.8,0.27647251]
[1737049600827,0.59747,3347.9,3347.8,0.27641725]
[1737049601129,0.59745,3348.1,3347.9,0.59746]
[1737049601328,3.2078,3348.3,3348.0,0.27637997]
[1737049601628,0.59742,3348.2,3348.1,0.27637997]
[1737049605118,3.2078,3348.7,3348.1,0.27637997]
[1737049605323,0.5974,3348.3,3348.2,2.27677997]
[1737049605520,0.5974,3348.3,3348.2,0.27637997]
[1737049605833,8.8052,3348.3,3348.2,9.97e-06]
[1737049606023,0.59758,3347.3,3347.2,2.59799]
[1737049606325,0.59758,3347.3,3347.2,2.0004]
[1737049607125,3.2078,3347.9,3347.2,2.0004]
[1737049607332,0.59756,3347.4,3347.3,0.59756]
[1737049607528,3.2078,3347.9,3347.2,2.0004]
[1737049607728,0.59758,3347.3,3347.2,2.59799]
[1737049607934,0.59758,3347.3,3347.2,2.0004]
[1737049608233,0.59763,3347.0,3346.9,3.2078]
[1737049608827,0.59768,3346.8,3346.7,0.59768]
[1737049609026,0.59769,3346.7,3346.6,2.0541]
[1737049609331,0.59769,3346.7,3346.6,1.0527]
[1737049610425,0.59769,3346.7,3346.6,1.65041]
[1737049611333,0.59769,3346.7,3346.6,1.0527]
[1737049611731,0.59769,3346.7,3346.1,5.2411]
[1737049611732,6.10931163,3346.9,3346.1,3.2078]
[1737049611943,2.90151163,3346.2,3345.7,0.59787]
[1737049612229,2.90151163,3346.2,3345.5,3.2078]
[1737049612431,0.9981,3346.3,3345.5,3.2078]
[1737049612627,0.59777,3346.3,3346.2,0.59777]
[1737049613028,1.0426,3346.8,3345.9,3.2078]
[1737049613237,0.59778,3346.3,3346.2,0.59777]
[1737049613736,0.59773,3346.5,3346.4,0.59773]
[1737049613933,4.70196,3346.9,3346.1,1.083]
[1737049614238,3.2078,3346.9,3346.1,1.083]
[1737049614436,0.59776,3346.4,3346.3,0.59775]
[1737049615035,3.2078,3346.9,3346.1,1.083]
[1737049615346,3.2078,3347.3,3347.2,0.5976]
[1737049615633,0.59751,3347.7,3347.6,0.59753]
[1737049615826,2.90151163,3348.1,3347.3,1.0475]
[1737049616027,0.59752,3347.7,3347.6,0.59752]
[1737049616436,2.90151163,3348.1,3347.3,1.0475]
[1737049616641,0.5975,3347.8,3347.7,0.5975]
[1737049616831,0.59752,3347.7,3347.6,0.59752]
[1737049617030,0.59754,3347.6,3347.5,0.59754]
[1737049617228,4.39512163,3348.1,3347.5,0.59754]
[1737049617442,0.59753,3347.6,3347.5,0.59754]
[1737049617941,0.59753,3347.6,3347.5,0.87249504]
[1737049618439,0.59753,3347.6,3347.5,0.27495504]
[1737049618831,0.59753,3347.6,3347.5,0.87250504]
[1737049619027,0.59748,3347.9,3347.6,0.59753]
[1737049619234,0.59746,3348.0,3347.9,0.59747]
[1737049619430,3.2078,3348.5,3347.9,0.27495504]
[1737049619734,0.59744,3348.2,3348.1,0.59743]
[1737049619933,0.59744,3348.2,3348.1,0.87277251]
[1737049620637,0.59741,3348.3,3348.2,0.59741]
[1737049620842,0.59741,3348.3,3348.2,0.87275251]
[1737049621139,0.59741,3348.3,3348.2,0.87300648]
[1737049621531,3.2078,3348.5,3348.2,0.27559648]
[1737049621744,3.80518,3348.5,3348.4,0.59738]
[1737049621940,3.2078,3348.5,3348.4,0.87297648]
[1737049622444,0.59736,3348.6,3348.5,0.59736]
[1737049622637,2.90151163,3348.9,3348.5,0.87295648]
[1737049622834,0.59734,3348.7,3348.6,0.27559648]
[1737049623035,3.49874163,3349.3,3348.6,3.48339648]
[1737049623237,2.90151163,3349.3,3349.2,0.59724]
[1737049623438,0.59722,3349.3,3349.2,0.27559648]
[1737049624444,3.49873163,3349.3,3349.2,0.27559648]
[1737049626944,0.59733,3348.7,3348.6,3.2078]
[1737049627141,0.59733,3348.7,3348.6,4.08095467]
[1737049627448,0.59733,3348.7,3348.6,0.27580467]
[1737049628336,0.59732,3348.8,3348.7,0.59732]
[1737049628535,0.59731,3348.8,3348.7,0.27580467]
[1737049628736,0.59738,3348.4,3348.3,1.0197]
[1737049628942,3.49889163,3348.4,3348.3,1.29543862]
[1737049629439,3.49889163,3348.4,3348.3,1.0197]
[1737049629646,2.90151163,3348.4,3348.0,1.0514]
[1737049629844,0.59744,3348.2,3348.1,0.27580613]
[1737049630234,0.59744,3348.2,3348.1,0.27588877]
[1737049630436,0.59744,3348.2,3348.1,0.87332877]
[1737049631643,2.90151163,3348.4,3348.1,0.27588877]
[1737049631846,0.59741,3348.3,3348.2,0.27588877]
[1737049632644,0.59749,3347.8,3347.7,0.9942]
[1737049632946,0.59749,3347.8,3347.7,1.86753616]
[1737049633146,2.90151163,3348.0,3347.7,1.27002616]
[1737049633338,2.90151163,3348.0,3347.4,3.2078]
[1737049633544,0.59753,3347.6,3347.5,0.27588984]
[1737049633736,0.59753,3347.6,3347.5,0.87343984]
[1737049634342,0.59752,3347.7,3347.6,0.59751]
[1737049634542,3.2078,3348.2,3347.6,1.76971984]
[1737049634746,3.2078,3348.2,3347.4,3.2078]
[1737049634747,2.90151163,3347.9,3347.7,0.27588984]
[1737049634951,0.59754,3347.6,3347.5,0.59753]
[1737049635252,0.59751,3347.7,3347.6,0.59751]
[1737049635547,0.59751,3347.7,3347.6,0.87351867]
[1737049635950,0.59751,3347.7,3347.6,0.87352764]
[1737049636151,0.59751,3347.7,3347.6,0.27599764]
[1737049636552,0.59758,3347.3,3347.2,2.0126]
[1737049636745,0.59758,3347.3,3347.2,0.27607075]
[1737049637144,0.59758,3347.3,3346.6,4.62336618]
[1737049637145,0.59765,3346.9,3346.8,0.59766]
[1737049637348,0.59765,3346.9,3346.8,0.27612941]
[1737049637541,0.59765,3346.9,3346.8,0.87379941]
[1737049637746,0.59765,3346.9,3346.8,0.87380169]
[1737049638250,0.59765,3346.9,3346.8,0.27613169]
[1737049638847,3.2078,3346.9,3346.1,3.2078]
[1737049639045,1.0498,3347.6,3346.4,0.27621712]
[1737049639046,3.80552,3346.5,3346.4,0.27621712]
[1737049639354,3.2078,3346.5,3345.9,5.70716618]
[1737049639558,0.59781,3346.0,3345.9,5.70716618]
[1737049639855,0.59781,3346.0,3345.9,6.58134969]
[1737049640356,2.90151163,3346.4,3345.9,6.58134969]
[1737049640554,0.59781,3346.1,3346.0,0.87416351]
[1737049640751,0.59778,3346.2,3346.1,0.59779]
[1737049641054,0.59778,3346.2,3346.1,0.87414351]
[1737049641358,0.59778,3346.2,3346.1,0.27635351]
[1737049641542,0.5978,3346.1,3346.0,0.5978]
[1737049641748,0.5978,3346.1,3346.0,0.87404819]
[1737049642253,0.59779,3346.2,3346.1,0.59779]
[1737049642450,3.49926163,3346.4,3346.3,0.59776]
[1737049642651,3.49926163,3346.4,3346.3,0.87400819]
[1737049642955,3.92601163,3346.8,3346.3,0.27624819]
[1737049643154,0.59772,3346.6,3346.5,0.59771]
[1737049643850,0.59777,3346.3,3346.2,0.59777]
[1737049644053,0.59776,3346.4,3346.3,0.59776]
[1737049644354,3.49927163,3346.4,3346.3,0.27638055]
[1737049644556,2.90151163,3346.4,3345.6,3.2078]
[1737049644854,2.90151163,3346.0,3345.7,0.27641743]
[1737049645151,0.59783,3345.9,3345.8,0.27644005]
[1737049645359,1.0681,3345.9,3345.6,3.2078]
[1737049645550,3.49938163,3345.7,3345.6,3.2078]
[1737049645849,6.10931163,3346.1,3345.6,3.48419466]
[1737049646050,3.49937163,3345.8,3345.7,0.27639466]
[1737049646249,0.59787,3345.7,3345.6,3.2078]
[1737049646449,0.59792,3345.4,3345.3,0.59792]
[1737049646644,0.59792,3345.4,3345.3,0.27631455]
[1737049647049,0.59792,3345.4,3345.0,46.2929]
[1737049647050,0.59797,3345.1,3345.0,3.2078]
[1737049647259,3.49948163,3345.1,3345.0,3.48404766]
[1737049647654,3.49948163,3345.1,3345.0,3.2078]
[1737049648855,2.90151163,3345.1,3344.8,1.0473]
[1737049649058,2.90151163,3345.1,3345.0,0.59799]
[1737049649255,3.49944163,3345.4,3345.2,0.59794]
[1737049649457,2.90151163,3345.6,3344.8,2.54238]
[1737049649657,0.59791,3345.5,3345.4,0.59792]
[1737049650663,0.59791,3345.5,3345.1,0.59797]
[1737049650860,2.90151163,3345.6,3345.0,3.2078]
[1737049651059,0.59793,3345.4,3345.3,0.59793]
[1737049651260,2.90151163,3345.6,3345.0,3.2078]
[1737049651756,2.90151163,3345.6,3344.8,2.54238]
[1737049651757,0.59798,3345.2,3345.1,0.59796]
[1737049651958,0.59799,3345.1,3345.0,0.59798]